Cogmind - Beta 12 @@@ ROGUE MODE // 2023.03.30 @ 22:50:56 Player: Mr Goldstein Result: Destroyed by H-77 Assassin with Coil Gun Performance ------------- Evolutions (6) 3000 Regions Visited (9) 1800 Robots Destroyed (126) 630 Value Destroyed (2865) 2865 Prototype IDs (4) 80 Alien Tech Used (0) 0 Bonus (227) 227 TOTAL SCORE: 8602 Bonus ------- High Alert Combat Kills 153 Follower Combat Kills 74 Cogmind --------- Core Integrity 0/1150 Matter 58/300 Energy 99/100 System Corruption 4% Temperature Cool (12) Movement Core (50) Location -4/Factory Parts ------- > --- POWER (2) -------- (None) > --- PROPULSION (6) --- (None) > --- UTILITY (9) ------ Advanced Signal Interpreter Hacking Suite > --- WEAPON (2) ------- (None) > --- INVENTORY (5) ---- Advanced Sensor Array Improved Reaction Control System KE Penetrator Long-range Missile Launcher Peak State ------------ > --- POWER ------------ Light Nuclear Core Light Fission Core > --- PROPULSION ------- Antigrav System Antigrav System Antigrav System Linear Gravjet Improved Antigrav System Improved Gyrokinetic Inverter > --- UTILITY ---------- Advanced Heat Sink Advanced Signal Interpreter Advanced Reaction Control System Hacking Suite Hacking Suite Experimental Hacking Suite Improved System Shield Improved System Shield Improved System Shield > --- WEAPON ----------- Hypervelocity Gauss Rifle Hypervelocity Gauss Rifle > --- INVENTORY -------- Light Nuclear Core Advanced Sensor Array Improved Reaction Control System KE Penetrator Long-range Missile Launcher [Rating: 104] Favorites ----------- Power Light Nuclear Core Engine Ion Engine Power Core Light Nuclear Core Reactor Antimatter Reactor Propulsion Wheel Treads Light Treads Wheel Wheel Hover Unit Antigrav System Flight Unit Cesium-ion Thruster Utility Hacking Suite Device Improved Sensor Array Storage Medium Storage Unit Processor Transport Network Coupler Hackware Hacking Suite Protection Light Armor Plating Weapon Light Assault Rifle Energy Gun Small Laser Energy Cannon Ion Cannon Ballistic Gun Light Assault Rifle Launcher Long-range Missile Launcher Slashing Weapon Axe Build | -11 -10 -9 -8 -7 -6 -5 -5 -5 -4 ------- Run | Jun Mat Mat Mat Fac Fac Fac Upp Upp Fac Slots Evolved 12 | . . 2 2 2 2 2 . . 2 Power 1 | . . . . . . . . . 1 Propulsion 4 | . . 1 1 1 . . . . 1 Utility 7 | . . 1 1 1 2 2 . . . Weapon . | . . . . . . . . . . Parts Attached 126 | 6 6 28 29 11 14 4 . . 28 Power 16 | 1 . 5 3 1 2 . . . 4 Engine 4 | 1 . 2 . . 1 . . . . Core 11 | . . 3 3 1 1 . . . 3 Reactor 1 | . . . . . . . . . 1 Propulsion 40 | 2 2 10 13 3 3 . . . 7 Treads 4 | . . 3 1 . . . . . . Leg . | . . . . . . . . . . Wheel 19 | 2 2 7 8 . . . . . . Hover 7 | . . . . . . . . . 7 Flight 10 | . . . 4 3 3 . . . . Utility 32 | 1 3 3 3 5 8 2 . . 7 Device 11 | . . . 3 . 3 1 . . 4 Storage 2 | 1 1 . . . . . . . . Processor 6 | . 2 1 . 1 2 . . . . Hackware 10 | . . . . 4 3 . . . 3 Protection 3 | . . 2 . . . 1 . . . Artifact . | . . . . . . . . . . Weapon 38 | 2 1 10 10 2 1 2 . . 10 Energy Gun 2 | 1 . 1 . . . . . . . Energy Cannon 2 | . . . 1 . . . . . 1 Ballistic Gun 21 | 1 1 8 6 . . . . . 5 Ballistic Cannon . | . . . . . . . . . . Launcher 9 | . . 1 3 1 1 . . . 3 Special Weapon . | . . . . . . . . . . Impact Weapon . | . . . . . . . . . . Slashing Weapon 4 | . . . . 1 . 2 . . 1 Piercing Weapon . | . . . . . . . . . . Special Melee Weapon . | . . . . . . . . . . Unidentified Prototypes 2 | . . 1 . . . . . . 1 Parts Lost 57 | . 1 16 10 3 2 . 9 . 16 Power 6 | . . 2 1 . . . 1 . 2 Propulsion 28 | . 1 8 6 2 2 . 4 . 5 Utility 15 | . . 2 1 1 . . 4 . 7 Weapon 8 | . . 4 2 . . . . . 2 Highest Loss Streak 12 | . 1 5 3 3 1 . 9 . 12 To Critical Strikes . | . . . . . . . . . . Average Slot Usage (%) 91 | . 99 92 93 85 94 90 81 29 82 Engine 2 | . 14 3 . . . . . . . Core 6 | . . 6 8 7 5 5 4 . 7 Treads 5 | . . 14 8 . . . . . . Wheel 11 | . 27 14 18 3 . . . . . Hover 3 | . . . . . . . . . 24 Flight 8 | . . . 5 28 31 23 18 . . Device 5 | . . . 8 7 5 11 9 5 12 Storage 6 | . 14 11 9 3 . . . . . Processor 13 | . 13 15 18 7 12 11 9 5 5 Hackware 8 | . . . . 19 26 23 21 17 24 Protection 1 | . . 4 . . . 4 4 . . Ballistic Gun 12 | . 25 20 15 . . . . . 5 Slashing Weapon 1 | . . . . 6 6 7 9 . . Naked Turns . | . . . . . . . . . . Heaviest Build 42 | 12 17 24 28 19 19 18 18 1 42 Greatest Support 66 | 26 32 40 42 20 28 22 22 3 66 Greatest Overweight (x) 7 | . . 6 7 . . . 2 . 1 Average Overweight (x) . | . . 1 . . . . . . . Largest Inventory Capacity 10 | 8 10 10 10 10 5 5 5 5 5 Average Capacity 8 | 6 8 10 10 7 5 5 5 5 5 Most Carried 10 | 5 10 10 10 9 5 5 5 5 5 Average Carried 7 | 2 6 9 9 6 4 4 5 5 4 Final Capacity 10 | 8 10 10 10 5 5 5 5 5 5 Final Carried 10 | 1 10 10 10 5 5 5 5 5 4 Class Distribution -------------------- 21% | Scavenger-Skirmisher 20% | Scavenger-Mutant 20% | Mutant 15% | Hacker-Scout 7% | Hacker-Mutant 7% | Hacker-Sprinter 5% | Wizard-Mutant Dominant Class ---------------- Mutant | -10/Materials Scavenger-Mutant | -9/Materials Scavenger-Skirmisher | -8/Materials Hacker-Sprinter | -7/Factory Hacker-Scout | -6/Factory Hacker-Scout | -5/Factory Hacker-Scout | -5/Upper Caves Hacker-Scout | -5/Upper Caves Hacker-Mutant | -4/Factory Resources | -11 -10 -9 -8 -7 -6 -5 -5 -5 -4 ----------- Run | Jun Mat Mat Mat Fac Fac Fac Upp Upp Fac Matter Collected 2433 | 234 156 753 987 . 51 . 54 . 198 Remotely . | . . . . . . . . . . Salvage Created 3945 | . 430 1589 1456 58 75 . . . 337 Parts 289 | . 38 110 101 8 9 . . . 23 Haulers Intercepted 11 | . 2 4 5 . . . . . . Recyclers Shooed 2 | . . . 2 . . . . . . Parts Field Recycled . | . . . . . . . . . . Retrieved Matter . | . . . . . . . . . . Parts Self-Destructed . | . . . . . . . . . . Prevented . | . . . . . . . . . . Kills | -11 -10 -9 -8 -7 -6 -5 -5 -5 -4 ------- Run | Jun Mat Mat Mat Fac Fac Fac Upp Upp Fac Combat Hostiles Destroyed 73 | . 8 25 25 4 . . . . 11 Guns 40 | . 8 20 12 . . . . . . Cannons 2 | . . . 2 . . . . . . AOE 30 | . . 4 11 4 . . . . 11 Classes Destroyed 13 | . 7 4 1 . . . . . 1 Worker 13 | . . 6 3 . . . . . 4 Builder 5 | . 1 2 2 . . . . . . Tunneler 1 | . . . . . . . . . 1 Hauler 11 | . 2 4 5 . . . . . . Recycler 5 | . . 2 3 . . . . . . Mechanic 1 | . 1 . . . . . . . . Operator 8 | . 1 3 2 . 2 . . . . Watcher 9 | . 2 2 3 1 1 . . . . Swarmer 34 | . 6 4 11 4 . . . . 9 Grunt 23 | . 2 12 7 . . . . . 2 Brawler 3 | . . 2 1 . . . . . . Sentry 12 | . . 7 5 . . . . . . Hunter 1 | . . . 1 . . . . . . Best Kill Streak 9 | . 5 7 9 4 1 . . . 5 Combat Bots Only 9 | . 3 5 9 4 . . . . 5 Max Kills in Single Turn 5 | . 1 4 5 2 1 . . . 5 Gunslinging 1 | . . 1 . . . . . . . Exploded 5 | . . 4 5 2 . . . . 5 Melee . | . . . . . . . . . . Uniques/NPCs Destroyed . | . . . . . . . . . . Combat | -11 -10 -9 -8 -7 -6 -5 -5 -5 -4 -------- Run | Jun Mat Mat Mat Fac Fac Fac Upp Upp Fac Damage Taken 6331 | . 395 1820 1103 285 206 . 361 . 2161 Core 2150 | . 158 371 186 125 35 . 105 . 1170 Absorbed by Shields . | . . . . . . . . . . Redirected to Shielding 66 | . . . . . . . 66 . . Core Remaining (%) 67 | 100 36 7 66 82 95 . . 89 . Volleys Fired 336 | . 60 155 109 3 . . . . 9 Largest 2 | . 2 2 2 1 . . . . 2 Hottest 88 | . 60 56 88 33 . . . . 88 Shots Fired 626 | . 120 288 201 3 . . . . 14 Gun 589 | . 120 287 176 . . . . . 6 Cannon 22 | . . . 18 . . . . . 4 Launcher 15 | . . 1 7 3 . . . . 4 Special . | . . . . . . . . . . Kinetic 562 | . 111 269 176 . . . . . 6 Thermal 45 | . 9 18 18 . . . . . . Explosive 15 | . . 1 7 3 . . . . 4 Electromagnetic 4 | . . . . . . . . . 4 Robot Hit Streak 19 | . 7 19 12 . . . . . 2 Robot Miss Streak 7 | . 6 4 7 4 . . . . 3 Penetration Max 1 | . . . 1 . . . . . . Secondary Targets 6 | . . 6 . . . . . . . Max Gunslinging Chain 1 | . . 1 . . . . . . . Shots Hit Robots 390 | . 68 181 129 1 6 . . . 5 Core Hits 197 | . 32 74 62 9 3 . . . 17 Critical Kills 3 | . . 3 . . . . . . . Critical Parts Destroyed 5 | . . 1 3 . . . . . 1 Critical Strikes 10 | . . 6 3 . . . . . 1 Burn 2 | . . 2 . . . . . . . Destroy 8 | . . 4 3 . . . . . 1 Melee Attacks 14 | . . . . 1 12 1 . . . Impact . | . . . . . . . . . . Slashing 14 | . . . . 1 12 1 . . . Piercing . | . . . . . . . . . . Sneak Attacks . | . . . . . . . . . . Combat Hostiles . | . . . . . . . . . . Follow-up Attacks . | . . . . . . . . . . Damage Inflicted 8448 | . 549 2281 2956 472 294 . 6 . 1890 Guns 4670 | . 549 2090 2024 . . . . . 7 Cannons 335 | . . . 295 . . . . . 40 Explosions 3093 | . . 182 637 431 . . . . 1843 Melee 335 | . . . . 41 294 . . . . Ramming 15 | . . 9 . . . . 6 . . Kinetic 4442 | . 495 1916 2024 . . . . . 7 Thermal 1332 | . 54 174 295 . . . . . 809 Explosive 2284 | . . 182 637 431 . . . . 1034 Electromagnetic 40 | . . . . . . . . . 40 Impact . | . . . . . . . . . . Slashing 335 | . . . . 41 294 . . . . Piercing . | . . . . . . . . . . Highest Corruption 26 | . 1 3 . . 3 . 26 26 4 Average Corruption 2 | . 1 3 . . 1 . 26 26 1 Corruption Purged . | . . . . . . . . . . Corruption Blocked . | . . . . . . . . . . Effects 29 | . 5 16 . . 6 . 1 1 . Message Errors 4 | . 1 3 . . . . . . . Matter Fused 6 | . 2 2 . . 1 . . 1 . Heat Flow Errors 3 | . . 2 . . 1 . . . . Energy Discharges 7 | . 2 3 . . 1 . 1 . . Data Loss (minor) 6 | . . 3 . . 3 . . . . Alerts 1 | . . 1 . . . . . . . Weapon Failures 2 | . . 2 . . . . . . . Overload Shots . | . . . . . . . . . . Overflow Damage 239 | . . . 24 107 42 . . . 66 Projectiles 22 | . . . 22 . . . . . . Explosions 175 | . . . 2 107 . . . . 66 Melee 42 | . . . . . 42 . . . . Knockbacks . | . . . . . . . . . . Impact . | . . . . . . . . . . Kinetic . | . . . . . . . . . . Secondary . | . . . . . . . . . . Self-Inflicted Damage 123 | . . . 92 . . . 3 . 28 Shots 4 | . . . 3 . . . . . 1 Rammed 7 | . . 4 . . . . 3 . . Targets Rammed 7 | . . 4 . . . . 3 . . Kicked . | . . . . . . . . . . Crushed . | . . . . . . . . . . Highest Temperature 306 | . 60 306 60 1 107 . 3 . 76 Average Temperature 37 | . 27 53 14 1 17 . 3 . 22 Received Heat Transfer 1711 | . 120 795 378 72 51 . 48 . 247 Siege Activations . | . . . . . . . . . . Robots Corrupted . | . . . . . . . . . . Combat Hostiles . | . . . . . . . . . . Parts Fried . | . . . . . . . . . . Impact Corruptions . | . . . . . . . . . . Robots Melted 1 | . . 1 . . . . . . . Combat Hostiles 1 | . . 1 . . . . . . . Parts Melted 2 | . . 2 . . . . . . . Heat Transferred 1748 | . 125 592 481 . . . . . 550 Parts Sabotaged . | . . . . . . . . . . Parts Stolen . | . . . . . . . . . . Parts Stripped . | . . . . . . . . . . Power Chain Reactions . | . . . . . . . . . . Missiles Intercepted . | . . . . . . . . . . Alert | -11 -10 -9 -8 -7 -6 -5 -5 -5 -4 ------- Run | Jun Mat Mat Mat Fac Fac Fac Upp Upp Fac Peak Influence 728 | . 287 454 728 724 403 137 . . 508 Initial 285 | . . 56 191 285 266 91 . . 19 Average 289 | . 132 219 476 515 232 124 . . 152 Maximum Alert Level 3 | . 1 2 3 3 2 . . . 2 Low Security (%) 39 | 100 70 44 5 . 47 100 . . 75 Level 1 37 | . 29 51 33 41 48 . . . 15 Level 2 15 | . . 4 41 25 3 . . . 8 Level 3 7 | . . . 19 33 . . . . . Level 4 . | . . . . . . . . . . Level 5 . | . . . . . . . . . . High Security . | . . . . . . . . . . Max Security . | . . . . . . . . . . Squads Dispatched 16 | . 1 6 2 . 2 . . . 5 Investigation 5 | . . 3 . . . . . . 2 Extermination 2 | . . . . . 1 . . . 1 Reinforcement 9 | . 1 3 2 . 1 . . . 2 Assault . | . . . . . . . . . . Garrison . | . . . . . . . . . . Intercept . | . . . . . . . . . . Searches Triggered 1 | . . . . . 1 . . . . Construction Impeded . | . . . . . . . . . . Haulers Reinforced . | . . . . . . . . . . Active Scanning Responses . | . . . . . . . . . . Cargo Convoy Interrupts . | . . . . . . . . . . Stealth | -11 -10 -9 -8 -7 -6 -5 -5 -5 -4 --------- Run | Jun Mat Mat Mat Fac Fac Fac Upp Upp Fac Distress Signals 16 | . 1 4 4 2 4 . . . 1 Communications Jammed . | . . . . . . . . . . Distress Signals . | . . . . . . . . . . Times Spotted 188 | . 19 45 40 17 22 1 7 4 33 Peak Tracking Total 17 | . 5 7 8 7 6 1 6 5 17 Tactical Retreats 23 | . 1 2 2 6 6 . 2 . 4 Traps | -11 -10 -9 -8 -7 -6 -5 -5 -5 -4 ------- Run | Jun Mat Mat Mat Fac Fac Fac Upp Upp Fac Traps Triggered 7 | . 1 1 . . 2 . . . 3 Indirectly . | . . . . . . . . . . Trap Hack Attempts . | . . . . . . . . . . Triggered . | . . . . . . . . . . Disarmed . | . . . . . . . . . . Reprogrammed . | . . . . . . . . . . Reused . | . . . . . . . . . . Traps Extracted . | . . . . . . . . . . Installed . | . . . . . . . . . . Triggered . | . . . . . . . . . . Machines | -11 -10 -9 -8 -7 -6 -5 -5 -5 -4 ---------- Run | Jun Mat Mat Mat Fac Fac Fac Upp Upp Fac Machines Disabled 20 | . . 1 2 2 1 . . . 14 Max in Single Turn 11 | . . 1 1 2 1 . . . 11 Garrison Access 2 | . . . . . 1 . . . 1 Machines Repaired . | . . . . . . . . . . Machines Sabotaged . | . . . . . . . . . . Overloaded Fab Kills . | . . . . . . . . . . Hacking | -11 -10 -9 -8 -7 -6 -5 -5 -5 -4 --------- Run | Jun Mat Mat Mat Fac Fac Fac Upp Upp Fac Machines Accessed 37 | . 3 8 4 5 13 1 . . 3 Terminals 28 | . 3 6 4 4 9 1 . . 1 Fabricators 4 | . . . . 1 2 . . . 1 Repair Stations . | . . . . . . . . . . Recycling Units 1 | . . 1 . . . . . . . Scanalyzers 2 | . . 1 . . 1 . . . . Garrison Access 2 | . . . . . 1 . . . 1 Total Hacks 100 | . 9 20 9 15 36 5 . . 6 Successful 41 | . 3 10 4 6 13 1 . . 4 Failed 59 | . 6 10 5 9 23 4 . . 2 Catastrophic 15 | . 2 2 3 . 7 1 . . . Database Lockouts . | . . . . . . . . . . Manual 68 | . 9 15 8 6 21 5 . . 4 Terminals 80 | . 9 14 9 12 27 5 . . 4 Fabricators 7 | . . . . 3 3 . . . 1 Repair Stations . | . . . . . . . . . . Recycling Units 2 | . . 2 . . . . . . . Scanalyzers 9 | . . 4 . . 5 . . . . Garrison Access 2 | . . . . . 1 . . . 1 Terminal Hacks 18 | . 2 2 2 4 5 1 . . 2 Record 1 | . . . . . 1 . . . . Robot Analysis 1 | . . . . . 1 . . . . Prototype ID Bank 1 | . 1 . . . . . . . . Level Access Points 2 | . . . . . 1 . . . 1 Emergency Access Points 1 | . . . . 1 . . . . . Terminal Index 5 | . 1 1 . 1 . 1 . . 1 Alert Level 1 | . . . 1 . . . . . . Unreport Threat 1 | . . . . . 1 . . . . Locate Traps 1 | . . . . 1 . . . . . Hauler Manifests 2 | . . 1 1 . . . . . . Registered Components 1 | . . . . 1 . . . . . Zone Layout 1 | . . . . . 1 . . . . Fabricator Hacks 3 | . . . . 1 1 . . . 1 Network Status 1 | . . . . . . . . . 1 Build 2 | . . . . 1 1 . . . . Repair Station Hacks . | . . . . . . . . . . Recycling Unit Hacks 1 | . . 1 . . . . . . . Report Inventory 1 | . . 1 . . . . . . . Scanalyzer 8 | . . 4 . . 4 . . . . Insert Component 4 | . . 2 . . 2 . . . . Analyze 4 | . . 2 . . 2 . . . . Garrison Access Hacks 2 | . . . . . 1 . . . 1 Seal Access 2 | . . . . . 1 . . . 1 Unauthorized Hacks 9 | . 1 3 2 1 2 . . . . Terminals 5 | . 1 2 2 . . . . . . Assimilate 2 | . . 1 1 . . . . . . Operators 3 | . 1 1 1 . . . . . . Fabricators 3 | . . . . 1 2 . . . . Liberate 3 | . . . . 1 2 . . . . Repair Stations . | . . . . . . . . . . Recycling Units 1 | . . 1 . . . . . . . Mask 1 | . . 1 . . . . . . . Scanalyzers . | . . . . . . . . . . Garrison Access . | . . . . . . . . . . Data Cores Recovered . | . . . . . . . . . . Used . | . . . . . . . . . . Hacking Detections 28 | . 2 8 4 4 9 . . . 1 Full Trace Events 3 | . . 2 . . . . . . 1 Feedback Events . | . . . . . . . . . . Feedback Blocked . | . . . . . . . . . . Robot Schematics Acquired . | . . . . . . . . . . Robots Built 4 | . . . . 1 3 . . . . Authchips . | . . . . . . . . . . Time 183 | . . . . 116 67 . . . . Total Robot Build Rating 15 | . . . . 3 12 . . . . Part Schematics Acquired 4 | . . 2 . . 2 . . . . Parts Built . | . . . . . . . . . . Authchips . | . . . . . . . . . . Time . | . . . . . . . . . . Total Part Build Rating . | . . . . . . . . . . Parts Repaired . | . . . . . . . . . . Time . | . . . . . . . . . . Parts Recycled . | . . . . . . . . . . Recycled Matter . | . . . . . . . . . . Retrieved Matter . | . . . . . . . . . . Retrieved Components . | . . . . . . . . . . Parts Scanalyzed 4 | . . 2 . . 2 . . . . Part Schematics Acquired 4 | . . 2 . . 2 . . . . Parts Damaged . | . . . . . . . . . . Bothacking | -11 -10 -9 -8 -7 -6 -5 -5 -5 -4 ------------ Run | Jun Mat Mat Mat Fac Fac Fac Upp Upp Fac Used RIF Installer . | . . . . . . . . . . Robots Hacked . | . . . . . . . . . . Non-combat . | . . . . . . . . . . Combat . | . . . . . . . . . . Robot Hacks Applied . | . . . . . . . . . . Relay Couplers Released . | . . . . . . . . . . Fabnet Peak Effective % . | . . . . . . . . . . Robots Rewired . | . . . . . . . . . . Allies Hacked . | . . . . . . . . . . Hacks Repelled . | . . . . . . . . . . Allies | -11 -10 -9 -8 -7 -6 -5 -5 -5 -4 -------- Run | Jun Mat Mat Mat Fac Fac Fac Upp Upp Fac Total Allies 7 | . . . . 1 6 . . . . Largest Group 3 | . . . . 1 3 . . . . Highest-Rated Group 87 | . . . . 34 87 . . . . Highest-Rated Ally 34 | . . . . 34 29 . . . . Total Orders 1 | . . . . 1 . . . . . ROAM 1 | . . . . 1 . . . . . Ally Attacks 43 | . . . . 3 40 . . . . Total Damage 910 | . . . . 170 740 . . . . Kills 4 | . . . . . 4 . . . . Allies Corrupted . | . . . . . . . . . . Allies Melted . | . . . . . . . . . . Intel | -11 -10 -9 -8 -7 -6 -5 -5 -5 -4 ------- Run | Jun Mat Mat Mat Fac Fac Fac Upp Upp Fac Robot Analysis Total 1 | . . . . . 1 . . . . Derelict Logs Recovered 1 | . . . . . . . 1 . . Drone Launches . | . . . . . . . . . . Drone Recoveries . | . . . . . . . . . . Exploration | -11 -10 -9 -8 -7 -6 -5 -5 -5 -4 ------------- Run | Jun Mat Mat Mat Fac Fac Fac Upp Upp Fac Turns Passed 5616 | 41 648 1398 1436 405 680 47 196 14 751 Spaces Moved 5686 | 29 371 686 793 692 1507 122 459 27 1000 Core 199 | 2 . 7 3 . . . 55 27 105 Treads 37 | . . 37 . . . . . . . Legs . | . . . . . . . . . . Wheels 1830 | 27 371 642 790 . . . . . . Hover 895 | . . . . . . . . . 895 Flight 2725 | . . . . 692 1507 122 404 . . Fastest Speed 25 | 50 90 80 86 27 25 29 29 50 38 Average Speed 55 | 87 90 107 102 30 25 29 32 50 44 Slowest Speed 400 | 90 100 350 400 32 29 29 150 50 108 Overloaded Moves . | . . . . . . . . . . Propulsion Burnouts . | . . . . . . . . . . Robots Hopped 28 | . . . . 8 17 . 3 . . Cave-ins Triggered . | . . . . . . . . . . Exploration Rate (%) 31 | 3 57 50 63 20 34 2 60 6 23 Regions Visited 9 Branch Regions 2 Pre-discovered Areas 1 | . . . . . . . 1 . . Known Exits Taken 7 | . . 1 1 1 1 1 1 1 . Unknown Exits Taken 2 | 1 1 . . . . . . . . Scrap Searched 3 | . . . . . . . 3 . . Spaces Dug 19 | . . . 19 . . . . . . Terrain Destroyed 174 | . . 6 53 51 . . . . 64 Melee . | . . . . . . . . . . Projectile 3 | . . . 3 . . . . . . AOE 171 | . . 6 50 51 . . . . 64 Terrain Rammed . | . . . . . . . . . . Walls Destroyed . | . . . . . . . . . . Machines Disabled . | . . . . . . . . . . Actions | -11 -10 -9 -8 -7 -6 -5 -5 -5 -4 --------- Run | Jun Mat Mat Mat Fac Fac Fac Upp Upp Fac Total 7504 | 44 586 1079 1209 874 1762 131 502 26 1291 Wait 1225 | 3 134 180 249 161 224 . 41 . 233 Move 5623 | 28 370 685 792 675 1473 121 453 26 1000 Hop 26 | . . . . 8 16 . 2 . . Pick Up 88 | 7 13 17 17 6 12 3 . . 13 Fast Attach 28 | . . 10 6 1 1 . . . 10 Attach 60 | 6 2 14 11 8 5 3 . . 11 Detach 3 | . . . 1 1 . 1 . . . Swap 38 | . 4 4 12 2 8 1 . . 7 Drop 55 | . 3 10 12 8 11 1 2 . 8 Fire 336 | . 60 155 109 3 . . . . 9 Melee 14 | . . . . 1 12 1 . . . Ram 3 | . . . . . . . 3 . . Kick . | . . . . . . . . . . Crush 4 | . . 4 . . . . . . . Escape Stasis . | . . . . . . . . . . Rewire 1 | . . . . . . . 1 . . Trap . | . . . . . . . . . . Miscellaneous . | . . . . . . . . . . Route ------- -11/Junkyard -10/Materials (discovered 2 exits: *Mat / [*Min]) -9/Materials -8/Materials -7/Factory -6/Factory (discovered 5 exits: *Fac x4 / *Low) -5/Factory -5/Upper Caves -5/Upper Caves -4/Factory (discovered 4 exits: Res x4) History --------- Turn | Location | Event 20 | -11/Junkyard | Discovered new exit (range 15) 42 | -11/Junkyard | Entered Materials 167 | -10/Materials | Discovered new exit (range 15) 306 | -10/Materials | Build established: Mutant 358 | -10/Materials | Core integrity fell below 50% 609 | -10/Materials | Discovered new exit (range 10) 690 | -10/Materials | Entered another Materials area 690 | -9/Materials | Evolved 2 slots: Propulsion x1, Utility x1 979 | -9/Materials | Lost 4 parts (2n1u1w) 1023 | -9/Materials | Lost 3 parts (1p2n) 1304 | -9/Materials | Core integrity fell below 50% 1335 | -9/Materials | Lost 5 parts (2n1u2w) 1807 | -9/Materials | Build established: Scavenger-Mutant 1932 | -9/Materials | Core integrity fell below 20% 2079 | -9/Materials | Discovered new exit (range 9) 2087 | -9/Materials | Identified exit to Materials 2088 | -9/Materials | Entered another Materials area 2088 | -8/Materials | Evolved 2 slots: Propulsion x1, Utility x1 2197 | -8/Materials | Lost 3 parts (2n1w) 2261 | -8/Materials | Lost 3 parts (1p1n1w) 2543 | -8/Materials | Build established: Scavenger-Skirmisher 2879 | -8/Materials | Destroyed 9 combat bots 2929 | -8/Materials | Discovered new exit (range 15) 3523 | -8/Materials | Identified exit to Factory 3524 | -8/Materials | Entered Factory 3524 | -7/Factory | Evolved 2 slots: Propulsion x1, Utility x1 3760 | -7/Factory | Lost 3 parts (2n1u) 3816 | -7/Factory | Build established: Hacker-Sprinter 3820 | -7/Factory | Discovered new exit (range 9) 3822 | -7/Factory | Identified exit to Factory 3901 | -7/Factory | Fabricated D-53 Grenadier? 3929 | -7/Factory | Entered another Factory area 3929 | -6/Factory | Evolved 2 slots: Utility x2 4213 | -6/Factory | Build established: Hacker-Scout 4279 | -6/Factory | Search patrols dispatched 4349 | -6/Factory | Discovered new exit (range 7) 4358 | -6/Factory | Identified exit to Lower Caves 4394 | -6/Factory | Fabricated B-48 Gladiator? 4570 | -6/Factory | Identified exit to Factory 4609 | -6/Factory | Entered another Factory area 4609 | -5/Factory | Evolved 2 slots: Utility x2 4632 | -5/Factory | Discovered new exit (range 5) 4634 | -5/Factory | Identified exit to Upper Caves 4656 | -5/Factory | Entered Upper Caves 4662 | -5/Upper Caves | Spotted B-75 Beast 4755 | -5/Upper Caves | Learned location of Armory (-3) 4815 | -5/Upper Caves | Ambushed by wild Derelicts 4816 | -5/Upper Caves | System corruption reached 10% 4841 | -5/Upper Caves | Discovered new exit (range 4) 4842 | -5/Upper Caves | Identified exit to Upper Caves 4846 | -5/Upper Caves | Lost 9 parts (1p4n4u) 4852 | -5/Upper Caves | Entered another Upper Caves area 4864 | -5/Upper Caves | Discovered new exit (range 4) 4865 | -5/Upper Caves | Identified exit to Factory 4866 | -5/Upper Caves | Entered Factory 4866 | -4/Factory | Evolved 2 slots: Power x1, Propulsion x1 5152 | -4/Factory | Build established: Hacker-Mutant 5251 | -4/Factory | Found Prototype Hackware 5251 | -4/Factory | Identified Exp. Hacking Suite 5497 | -4/Factory | Identified exit to Research 5568 | -4/Factory | Lost 4 parts (1p2n1u) 5579 | -4/Factory | Build established: Wizard-Mutant 5607 | -4/Factory | Core integrity fell below 50% 5617 | -4/Factory | Core integrity fell below 20% 5617 | -4/Factory | Destroyed by H-77 Assassin with Coil Gun Last Messages --------------- 05608_ K-01 Serf pushes R-10 Processor. 05609_ K-01 Serf collects debris. 05611_ R-10 Processor collects Unknown Engine. 05611_ K-01 Serf collects debris. 05612_ ALERT: Suspicious intruders detected, dispatching Cutter reinforcements to area. 05616_ Knocked back. 05616_ Triggered Gamma Bomb Trap. 05616_ A bubble of electromagnetic force engulfs the area. 05616_ Gamma Bomb Trap short circuited. 05616_ K-01 Serf destroyed. 05616_ Gamma Bomb Trap short circuited. 05616_ K-01 Serf destroyed. 05616_ A bubble of electromagnetic force engulfs the area. 05616_ Gamma Bomb Trap short circuited. 05616_ Power Conduit explodes. 05616_ K-01 Serf destroyed. 05616_ Terminal disabled. 05616_ A bubble of electromagnetic force engulfs the area. 05616_ P-70 Sage resets G-67 Veteran, system corruption cleaned. Map ----- +----------------------------------------------------+ | ?????????????????????????????????????????????????? | | ?????????????????????????????????????????????????? | | ?????????????????????????????????????????????????? | | ?????????????????????????????????????????????????? | | ?????????????????????????????????????????????????? | | ?????????????????????????????????????????????????? | | ?????????????????????????????????????????????????? | | ?????????????????????????????????????????????????? | | ?????????????????????????????????????????????????? | | ?????????????????????????????????????????????????? | | ?????????????????????????????????????????????????? | | ?????????????????????????????????????????????????? | | ?????????????????????????????????????????????????? | | ?????????????????????????????????????????????????? | | ?????????????? ?????????????????????????????????? | | ?????????????? ????????????????????????????????? | | ????????????? ???????????????????????????????? | | ????????????? u##?????????????????????????????? | | ???????????? R ####+#####???????????????????? | | ???????????? k ! #???????????????????? | | ???????????? #???????????????????? | | ??????????? #???????????????????? | | ??????????? H #???????????????????? | | ?????????? #???????????????????? | | ?????????? h h % #???????????????????? | | ??????????# g @ #???????????????????? | | ??????????# ## #???????????????????? | | ?????????????#######?# #???????????????????? | | ?????????????? #???????????????????? | | ??????????# #???????????????????? | | ??????????? ??????????????????? | | ??????????? # ????????????????? | | ???????????? % # "???????????????? | | ???????????? gg #? ""??????????????? | | ???????????? #?? ""??????????????? | | ????????????? #??? ??????????????? | | ????????????? % ^ u #???##??????????????? | | ?????????????? #= #???????????????????? | | ?????????????? # #???????????????????? | | ???????????????? = ?# ##??????????????????? | | ?????????????????? ?# kt +??????????????????? | | ?????????????????????# ##??????????????????? | | ?????????????????????# #???????????????????? | | ?????????????????????# #???????????????????? | | ?????????????????????# #???????????????????? | | ?????????????????????# #???????????????????? | | ?????????????????????# ########????????????? | | ?????????????????????# %= ?????????? | | ?????????????????????+ ! ?????????? | | ?????????????????????# ?????????? | +----------------------------------------------------+ Best States ------------- Heat Dissipation 62 Energy Generation 34 Energy Capacity 385 Matter Stores 300 Matter Capacity 300 Sight Range 16 Robot Scan Range 16 Terrain Scan Density 10 Armor Coverage 150 Propulsion Shielding 66 Evasion (%) 74 Targeting Accuracy 5 Recoil Reduction 2 Offensive Hacking 36 Defensive Hacking 36 Item Schematics ----------------- Hacking Suite | -9/Materials | Scanalyzed System Shield | -9/Materials | Scanalyzed Adv. Visual Processing Unit | -6/Factory | Scanalyzed Imp. Sensor Array | -6/Factory | Scanalyzed Robot Schematics ------------------ None Fabricated ------------ D-53 Grenadier | x1 | -7/Factory | Preloaded B-48 Gladiator | x3 | -6/Factory | Preloaded Alien Tech Used ----------------- None Achievements -------------- My Command Is Your Wish Challenges ------------ None Game ------ Seed BiocellThermalCarapace Manual? 0 Play Time 01:25:19 Cumulative 52.8 hours Start 2023.03.30 @ 21:00:14 End 2023.03.30 @ 22:50:56 Sessions 1 Manual Loads 0 Difficulty Rogue Special Mode None Game No. 77 Rogue 77 Adventurer 0 Explorer 0 Win Type - Total 0 Types 0/0/0/0/0/0/0/0/0 Lore% 37 Gallery% 37 Achievement% 33 Wizard Run 0 Options --------- ASCII 0 Keyboard 0 Movement Arrows Keybinds 0 Fullscreen 1 Font 12/Smallcaps Map View 83x54 Tactical HUD 1 Map Filters NONE Filters NONE Steam 1 RUN: bccc159c-7ad0-4598-8ba7-e3166bb5c717